bitfinex/quotes_ETHUSD_20250430
["timestamp","ask_amount","ask_price","bid_price","bid_amount"]
[1745995861769,5.53097345,1808.0,1807.9,7.53525663]
[1745995861964,0.84038439,1808.0,1807.9,4.95690532]
[1745995863315,0.84038439,1808.0,1807.9,0.42290532]
[1745995863521,0.84038439,1808.0,1807.9,4.534]
[1745995866122,0.84038439,1808.0,1807.9,5.9083]
[1745995866305,5.40962472,1808.2,1807.9,11.43957938]
[1745995866510,0.84053679,1808.1,1808.0,2.84719271]
[1745995866712,0.84053679,1808.1,1808.0,3.39719271]
[1745995866956,0.84053679,1808.1,1808.0,8.92816616]
[1745995868925,0.84053679,1808.1,1808.0,12.68186616]
[1745995869827,5.40962472,1808.2,1808.1,9.08066755]
[1745995869987,5.40962472,1808.2,1808.1,10.90192092]
[1745995870191,5.40962472,1808.2,1808.1,11.69822092]
[1745995870789,5.40962472,1808.5,1808.3,0.55]
[1745995871033,5.40962472,1808.5,1808.4,4.534]
[1745995872223,11.72106901,1808.5,1808.4,4.534]
[1745995873029,6.19162472,1808.5,1808.4,4.534]
[1745995873626,6.19162472,1808.5,1808.4,4.9398251]
[1745995875227,11.72106901,1808.5,1808.4,4.534]
[1745995878451,6.35435585,1808.3,1808.2,4.534]
[1745995882471,11.76398057,1808.3,1808.2,4.534]
[1745995883125,12.60870797,1808.3,1808.2,4.534]
[1745995891863,11.78440797,1808.3,1808.2,4.534]
[1745995892076,6.25435212,1808.3,1808.2,4.534]
[1745995892600,6.25435212,1808.3,1808.1,4.544]
[1745995892808,6.25435212,1808.3,1808.1,6.53331092]
[1745995894911,11.78441502,1808.3,1808.1,6.53331092]
[1745995895068,6.25435212,1808.3,1808.1,6.53331092]
[1745995895468,6.25435212,1808.3,1808.2,0.55]
[1745995904741,11.78441022,1808.3,1808.1,6.53331092]
[1745995905103,6.25435212,1808.3,1808.1,6.53331092]
[1745995906817,11.78449513,1808.3,1808.1,5.72181092]
[1745995907001,11.78449513,1808.3,1808.1,4.544]
[1745995909040,6.25435212,1808.3,1808.1,4.544]
[1745995909946,6.25435212,1808.3,1808.1,5.3029]
[1745995911652,6.25435212,1808.3,1808.0,6.08080781]
[1745995911946,6.25435212,1808.3,1808.2,4.535]
[1745995915165,11.78440797,1808.3,1808.2,4.535]
[1745995915460,12.53930797,1808.3,1808.2,4.535]
[1745995916335,5.53039434,1808.2,1808.1,4.535]
[1745995916534,6.37367428,1808.2,1808.1,4.535]
[1745995921081,0.84327994,1808.2,1808.1,4.535]
[1745995922176,6.37364162,1808.2,1808.1,4.535]
[1745995924373,0.84327994,1808.2,1808.1,4.535]
[1745995924896,6.37364162,1808.2,1808.1,4.535]
[1745995925799,0.84327994,1808.2,1808.1,4.535]
[1745995927117,6.37364162,1808.2,1808.1,4.535]
[1745995928901,5.53083582,1808.1,1808.0,4.535]
[1745995929091,10.94046054,1808.1,1808.0,4.535]
[1745995929408,11.78374048,1808.1,1808.0,4.535]
[1745995931567,6.25290466,1808.1,1808.0,4.535]
[1745995933367,6.25290466,1808.1,1808.0,5.02929842]
[1745995934302,6.25290466,1808.1,1808.0,5.79949842]
[1745995937074,6.25290466,1808.1,1808.0,11.88047187]
[1745995940811,6.25290466,1808.1,1808.0,14.88047187]
[1745995948282,5.40962472,1808.1,1808.0,14.88047187]
[1745995948583,6.21490558,1808.1,1808.0,14.88047187]
[1745995949918,0.80528086,1808.1,1808.0,14.88047187]
[1745995950323,5.40962472,1808.4,1808.2,5.53025051]
[1745995950718,0.80650319,1808.3,1808.2,6.08025051]
[1745995950892,0.80650319,1808.3,1808.2,7.41165976]
[1745995956641,0.80650319,1808.3,1808.2,8.18615976]
[1745995957317,6.33865724,1808.6,1808.3,0.55]
[1745995957524,11.74828196,1808.6,1808.3,0.55]
[1745995957719,11.74828196,1808.6,1808.3,5.079]
[1745995958329,0.80650319,1808.5,1808.3,5.079]
[1745995960133,6.33595765,1808.5,1808.3,4.529]
[1745995961737,11.74558237,1808.5,1808.3,4.529]
[1745995964544,11.74576642,1808.5,1808.3,4.529]
[1745995965227,17.27547207,1808.5,1808.3,4.529]
[1745995969337,5.52975005,1808.4,1808.3,4.529]
[1745995969738,6.33694079,1808.4,1808.3,4.529]
[1745995984022,6.33694079,1808.4,1808.1,1.76216415]
[1745995984023,5.53006936,1808.3,1808.1,1.76216415]
[1745995984181,5.53006936,1808.3,1808.2,4.529]
[1745995984781,5.52975005,1808.4,1808.2,4.529]
[1745995985220,10.93937477,1808.4,1808.2,4.529]
[1745995988389,0.80566283,1808.3,1808.2,4.529]
[1745996003352,0.80566283,1808.3,1808.2,10.05936168]
[1745996003518,0.80566283,1808.3,1808.2,11.3521889]
[1745996005358,0.80566283,1808.3,1808.2,11.9021889]
[1745996005651,0.80566283,1808.3,1808.2,12.6812889]
[1745996007255,0.80566283,1808.3,1808.2,13.89345305]
[1745996011764,0.80566283,1808.3,1808.2,11.9021889]
[1745996012068,0.80566283,1808.3,1808.2,6.37182722]
[1745996024371,5.53057433,1808.2,1808.0,3.73436813]
[1745996024571,10.94029227,1808.1,1808.0,3.73436813]
[1745996024869,12.51651346,1808.1,1808.0,3.73436813]
[1745996025445,12.82784834,1808.1,1808.0,3.73436813]
[1745996030777,5.53126171,1808.0,1807.8,4.529]
[1745996030977,11.06252601,1808.0,1807.8,4.529]
[1745996031141,0.79832679,1807.9,1807.8,4.529]
[1745996031341,0.79832679,1807.9,1807.8,5.74116415]
[1745996031582,1.10966167,1807.9,1807.8,8.14198057]
[1745996031943,6.64094105,1807.9,1807.8,8.14198057]
[1745996032241,6.64094105,1807.9,1807.8,8.56652061]
[1745996034094,6.64094105,1807.9,1807.8,6.16570419]
[1745996035082,12.05056577,1807.9,1807.8,6.16570419]
[1745996035983,6.51928639,1807.9,1807.8,6.16570419]
[1745996037554,6.20795151,1807.9,1807.8,6.16570419]
[1745996038703,11.73923089,1807.9,1807.8,6.16570419]
[1745996038872,6.20795151,1807.9,1807.8,6.16570419]
[1745996046932,6.51825713,1807.9,1807.8,6.16570419]
[1745996052491,12.04953651,1807.9,1807.8,4.95354004]
[1745996054027,6.51825713,1807.9,1807.8,4.95354004]
[1745996054425,6.51825713,1807.9,1807.8,6.16570419]
[1745996054592,6.51825713,1807.9,1807.8,6.78227461]
[1745996055425,6.51825713,1807.9,1807.8,6.16570419]
[1745996058997,6.51825713,1807.9,1807.8,6.71570419]
[1745996059932,6.51825713,1807.9,1807.8,12.24728954]
[1745996060123,6.51825713,1807.9,1807.8,13.07948954]
[1745996060499,6.51825713,1807.9,1807.8,16.07948954]
[1745996060702,6.20795151,1807.9,1807.8,18.24060633]
[1745996064332,0.79832679,1807.9,1807.8,18.24060633]
[1745996064737,5.40962472,1808.3,1808.1,0.55]
[1745996065028,5.40962472,1808.3,1808.2,4.529]
[1745996066004,5.72037584,1808.3,1808.2,4.529]
[1745996067249,5.72037584,1808.3,1808.2,5.079]
[1745996068041,12.02573169,1808.3,1808.2,4.529]
[1745996072237,12.82665695,1808.3,1808.2,4.529]
[1745996077775,7.2966011,1808.3,1808.2,4.529]
[1745996084082,6.5213011,1808.3,1808.2,4.529]
[1745996086382,12.05135695,1808.3,1808.2,4.529]
[1745996096514,12.80595695,1808.3,1808.2,4.529]
[1745996097303,14.63954526,1808.3,1808.2,4.529]
[1745996101517,5.53077274,1808.1,1807.9,1.3216]
[1745996101718,5.53077274,1808.1,1808.0,4.526]
[1745996102210,5.84152386,1808.1,1808.0,4.526]
[1745996102913,5.53097345,1808.0,1807.8,0.42454004]
[1745996103081,6.11514591,1808.0,1807.9,4.526]
[1745996103277,5.53189135,1807.7,1807.6,22.00236813]
[1745996103622,10.94151607,1807.7,1807.6,26.52836813]
[1745996103927,11.25226719,1807.7,1807.6,26.52836813]
[1745996104628,11.25226719,1807.7,1807.6,22.794]
[1745996104927,11.25226719,1807.7,1807.6,24.00616415]
[1745996106031,11.25226719,1807.7,1807.6,24.41437995]
[1745996106429,10.47149019,1807.7,1807.6,24.41437995]
[1745996108304,6.52275323,1807.7,1807.6,24.41437995]
[1745996108629,6.52275323,1807.7,1807.6,26.93481795]
[1745996109734,12.05464458,1807.7,1807.6,26.93481795]
[1745996110100,6.52275323,1807.7,1807.6,26.93481795]
[1745996111216,11.74389346,1807.7,1807.6,24.41437995]
[1745996113868,6.21200211,1807.7,1807.6,24.41437995]
[1745996116455,6.52214748,1807.7,1807.6,24.41437995]
[1745996117652,6.52214748,1807.7,1807.6,6.14637995]
[1745996120127,6.21200211,1807.7,1807.6,6.14637995]
[1745996120462,6.21200211,1807.7,1807.6,7.393263]
[1745996123867,6.52232136,1807.7,1807.6,7.393263]
[1745996124068,6.52232136,1807.7,1807.6,6.14637995]
[1745996129082,6.52232136,1807.7,1807.6,6.12753023]
[1745996135688,6.52232136,1807.7,1807.6,6.67753023]
[1745996139967,6.52232136,1807.7,1807.6,6.26931443]
[1745996140658,7.29352136,1807.7,1807.6,6.26931443]
[1745996141189,7.29352136,1807.7,1807.3,1.99376415]
[1745996141507,12.56782746,1807.7,1807.6,4.527]
[1745996141657,5.53321495,1807.3,1807.1,4.93931649]
[1745996141997,11.76632412,1807.4,1807.2,4.527]
[1745996142875,0.31120439,1807.3,1807.2,5.077]
[1745996144261,5.84432008,1807.3,1807.2,4.527]
[1745996146502,11.2539448,1807.3,1807.2,4.527]
[1745996147292,13.83250922,1807.3,1807.2,4.527]
[1745996153329,14.6217368,1807.3,1807.2,4.527]
[1745996155494,5.5342098,1807.0,1806.9,4.528]
[1745996155909,6.32343738,1807.0,1806.9,4.528]
[1745996158329,11.7330621,1807.0,1806.9,4.028]
[1745996158533,13.45975372,1807.0,1806.9,4.028]
[1745996158838,5.53464688,1806.8,1806.7,4.527]
[1745996159058,10.9442716,1806.8,1806.7,4.527]
[1745996159231,11.73181631,1806.8,1806.7,4.527]
[1745996159544,5.53587245,1806.4,1806.3,26.53215234]
[1745996159723,10.94549717,1806.4,1806.3,8.25415234]
[1745996160227,11.73304188,1806.4,1806.3,8.25415234]
[1745996160425,6.19716943,1806.4,1806.3,8.25415234]
[1745996161239,6.19716943,1806.4,1806.3,4.527]
[1745996163297,11.73304188,1806.4,1806.3,4.527]
[1745996163720,13.45992005,1806.4,1806.3,4.527]
[1745996164339,6.19716943,1806.4,1806.3,4.527]
[1745996165731,5.53648139,1806.3,1806.2,4.528]
[1745996166110,6.31292951,1806.3,1806.2,4.528]
[1745996167037,11.72255423,1806.3,1806.2,4.528]
[1745996167210,6.31918543,1806.2,1806.1,0.05]
[1745996167578,8.1233594,1806.2,1806.1,0.05]
[1745996167730,8.89980752,1806.2,1806.1,0.05]
[1745996172966,14.30943224,1806.2,1806.1,0.05]
[1745996175682,14.61793573,1806.2,1806.1,0.05]
[1745996186478,6.49457633,1806.2,1806.1,6.90669198]
[1745996187075,6.18607284,1806.2,1806.1,6.90669198]
[1745996191392,6.18607284,1806.2,1806.1,9.90669198]
[1745996194119,5.40962472,1806.7,1806.6,6.3188596]
[1745996194336,5.40962472,1806.7,1806.6,8.01774953]
[1745996194478,5.40962472,1806.7,1806.6,2.48248993]
[1745996194479,6.05901767,1806.7,1806.6,2.48248993]
[1745996194681,6.05901767,1806.7,1806.6,1.69888993]
[1745996195060,6.36901868,1806.7,1806.6,1.69888993]
[1745996197218,6.36901868,1806.7,1806.5,5.3116]
[1745996197419,6.36901868,1806.7,1806.5,7.01048993]
[1745996198028,6.05901767,1806.7,1806.5,7.01048993]
[1745996199927,6.05901767,1806.7,1806.5,4.534]
[1745996200223,6.05901767,1806.7,1806.5,6.23288993]
[1745996200727,11.59400663,1806.7,1806.5,6.23288993]
[1745996200922,17.95394649,1806.7,1806.5,6.23288993]
[1745996201342,5.5352596,1806.6,1806.5,6.23288993]
[1745996201836,6.18634424,1806.6,1806.5,6.23288993]
[1745996205166,11.59596896,1806.6,1806.5,6.23288993]
[1745996206567,5.53608505,1806.4,1806.3,1.69888993]
[1745996206777,0.65246881,1806.4,1806.3,1.69888993]
[1745996207088,5.53617892,1806.3,1806.2,5.2876]
[1745996207399,5.53617892,1806.3,1806.2,4.533]
[1745996207781,0.65246881,1806.3,1806.2,4.533]
[1745996207978,11.07219058,1806.4,1806.2,4.533]
[1745996208183,0.65246881,1806.3,1806.2,4.533]
[1745996208477,11.07219058,1806.4,1806.2,4.533]
[1745996208671,0.65246881,1806.3,1806.2,4.533]
[1745996208888,5.53607335,1806.4,1806.2,4.533]
[1745996209094,0.65246881,1806.3,1806.2,4.533]
[1745996209389,5.53607335,1806.4,1806.2,4.533]
[1745996209596,0.65246881,1806.3,1806.2,4.533]
[1745996209795,5.53607335,1806.4,1806.2,4.533]
[1745996209995,0.65246881,1806.3,1806.2,4.533]
[1745996210396,6.06209353,1806.3,1806.2,4.533]
[1745996212666,6.37204358,1806.3,1806.2,4.533]
[1745996214497,5.53648543,1806.2,1806.1,4.23888773]
[1745996214919,5.84643548,1806.2,1806.1,4.23888773]
[1745996215067,6.49675115,1806.2,1806.1,4.23888773]
[1745996216904,12.67727587,1806.2,1806.1,4.23888773]
[1745996217104,5.53771181,1805.8,1805.7,6.23288993]
[1745996217403,11.59088354,1805.8,1805.7,4.534]
[1745996217808,11.90083359,1805.8,1805.7,4.534]
[1745996219507,5.53815252,1805.7,1805.5,1.69888993]
[1745996219873,0.64300844,1805.6,1805.5,1.69888993]
[1745996221478,5.40962472,1805.8,1805.7,0.7523]
[1745996221677,5.40962472,1805.8,1805.7,2.45118993]
[1745996225421,5.40962472,1805.8,1805.7,3.00118993]
[1745996225621,5.40962472,1805.8,1805.7,8.53920842]
[1745996225821,5.40962472,1805.8,1805.7,3.85511077]
[1745996227206,5.40962472,1805.8,1805.7,3.00118993]
[1745996227712,5.40962472,1805.8,1805.7,8.53920842]
[1745996228104,5.40962472,1805.8,1805.7,3.00118993]
[1745996228319,6.05040153,1805.8,1805.7,3.00118993]
[1745996229211,6.05040153,1805.8,1805.7,8.53920842]
[1745996229413,6.05040153,1805.8,1805.7,9.94694191]
[1745996229816,6.05040153,1805.8,1805.7,3.65662342]
[1745996230001,6.05040153,1805.8,1805.7,1.69888993]
[1745996231233,6.05040153,1805.8,1805.7,8.54650842]
[1745996237747,6.05040153,1805.8,1805.7,13.08550842]
[1745996240648,6.05040153,1805.8,1805.7,12.32590842]
[1745996245223,6.05040153,1805.8,1805.7,13.14050842]
[1745996245425,6.05040153,1805.8,1805.7,15.00836876]
[1745996249469,6.3609633,1805.8,1805.7,15.00836876]
[1745996252362,6.05040153,1805.8,1805.7,15.00836876]
[1745996253062,6.05040153,1805.8,1805.7,18.00836876]
[1745996253454,5.40962472,1805.8,1805.7,18.00836876]
[1745996253654,5.40962472,1806.2,1806.0,5.53705562]
[1745996253950,5.40962472,1806.2,1806.1,1.69888993]
[1745996254740,5.40962472,1806.2,1806.1,8.57828191]
[1745996254935,5.40962472,1806.2,1806.1,10.61310466]
[1745996255761,5.40962472,1806.2,1806.1,8.91421473]
[1745996258136,5.40962472,1806.2,1806.1,9.33999216]
[1745996258464,6.05401788,1806.2,1806.1,9.33999216]
[1745996258665,6.81901788,1806.2,1806.1,0.97577743]
[1745996258854,6.81901788,1806.2,1806.0,11.76994555]
[1745996261161,6.05401788,1806.2,1806.1,6.08679198]
[1745996261368,6.05401788,1806.2,1806.1,6.91039198]
[1745996261577,5.40962472,1806.2,1806.1,6.91039198]
[1745996261783,6.05571001,1806.2,1806.1,8.98982439]
[1745996265106,6.05571001,1806.2,1806.1,2.07943241]
[1745996265381,6.05571001,1806.2,1806.1,1.69888993]
[1745996266193,6.05571001,1806.2,1806.1,7.23568191]
[1745996266483,6.05571001,1806.2,1806.1,7.78568191]
[1745996267687,6.05571001,1806.2,1806.1,6.08679198]
[1745996269018,6.86611001,1806.2,1805.7,7.17436034]
[1745996269292,13.08934192,1806.2,1805.9,1.69888993]
[1745996269475,6.86611001,1806.2,1805.9,7.23627224]
[1745996269858,6.86611001,1806.2,1806.1,1.69888993]
[1745996270060,7.17547154,1806.2,1806.1,1.69888993]
[1745996274897,12.71195697,1806.2,1805.9,1.69888993]
[1745996275398,0.7858,1806.1,1805.9,1.69888993]
[1745996275893,0.6466241,1806.0,1805.9,1.69888993]
[1745996276096,0.6466241,1806.0,1805.7,6.23288993]
[1745996276097,6.18372266,1806.0,1805.7,6.23288993]
[1745996276287,0.8127,1805.9,1805.7,6.23288993]
[1745996276882,0.6466241,1805.8,1805.7,6.78288993]
[1745996279198,6.18446164,1805.8,1805.6,1.69888993]
[1745996279367,6.98026465,1805.7,1805.6,4.534]
[1745996279574,12.38988937,1805.7,1805.6,4.534]
[1745996279893,13.03482103,1805.7,1805.6,4.534]
[1745996280681,13.34426452,1805.7,1805.6,4.534]
[1745996281399,13.34426452,1805.7,1805.4,1.69888993]
[1745996281604,0.30944349,1805.6,1805.4,1.69888993]
[1745996282007,0.64377748,1805.5,1805.4,1.69888993]
[1745996284091,12.39009586,1805.7,1805.4,1.69888993]
[1745996284291,0.64377748,1805.5,1805.4,1.69888993]
[1745996284491,5.40962472,1805.6,1805.4,1.69888993]
[1745996284698,0.64377748,1805.5,1805.4,1.69888993]
[1745996285067,0.64377748,1805.5,1805.4,7.23782866]
[1745996285267,0.64377748,1805.5,1805.4,7.78782866]
[1745996285667,0.64377748,1805.5,1805.4,2.24888993]
[1745996286608,0.64377748,1805.5,1805.4,7.78782866]
[1745996287805,0.64377748,1805.5,1805.4,9.57891721]
[1745996288106,0.64377748,1805.5,1805.4,7.88002728]
[1745996288501,0.64377748,1805.5,1805.4,11.65112728]
[1745996292720,5.40962472,1805.6,1805.5,5.53863195]
[1745996293011,5.40962472,1805.6,1805.5,7.23752188]
[1745996293212,5.40962472,1805.6,1805.5,9.6763868]
[1745996295413,5.40962472,1805.6,1805.5,12.6763868]
[1745996297911,6.05070935,1805.6,1805.5,12.6763868]
[1745996299056,5.40962472,1806.2,1806.1,6.08679198]
[1745996299260,5.40962472,1806.2,1806.1,7.78568191]
[1745996299416,5.40962472,1806.2,1806.1,2.24888993]
[1745996300614,5.40962472,1806.2,1806.1,7.78568191]
[1745996303853,5.40962472,1806.2,1806.1,1.69888993]
[1745996305355,6.16822472,1806.2,1806.1,1.69888993]
[1745996306459,6.76404012,1806.2,1806.1,1.69888993]
[1745996309661,12.30052555,1806.2,1806.0,1.69888993]
[1745996309825,6.76404012,1806.2,1806.0,1.69888993]
[1745996310755,6.00544012,1806.2,1806.0,1.69888993]
[1745996311392,6.00544012,1806.2,1806.0,7.23582913]
[1745996311800,6.00544012,1806.2,1806.0,7.23579764]
[1745996311973,6.00544012,1806.2,1806.1,6.08679198]
[1745996312498,6.00544012,1806.2,1806.1,0.55]
[1745996313601,0.7838,1806.1,1806.0,1.69888993]
[1745996313774,0.7838,1806.1,1805.9,4.584]
[1745996313990,1.37938474,1806.1,1805.9,4.584]
[1745996315200,1.37938474,1806.1,1805.9,10.12140104]
[1745996315359,1.37938474,1806.1,1806.0,1.69888993]
[1745996316196,1.37938474,1806.1,1806.0,7.23598849]
[1745996316413,1.37938474,1806.1,1806.0,2.24888993]
[1745996316703,6.78900946,1806.1,1806.0,2.24888993]
[1745996319306,6.78900946,1806.1,1806.0,7.78598849]
[1745996320219,6.78900946,1806.1,1806.0,7.23598849]
[1745996321918,6.00520946,1806.1,1806.0,7.23598849]
[1745996322121,6.31516642,1806.1,1806.0,7.23598849]
[1745996322289,6.31516642,1806.1,1806.0,1.69888993]
[1745996326020,6.31516642,1806.1,1805.9,4.584]
[1745996326021,6.31516642,1806.1,1805.9,6.28288993]
[1745996326715,0.30995696,1806.0,1805.9,6.28288993]
[1745996327082,0.9046187,1806.0,1805.9,6.28288993]
[1745996328522,6.31424342,1806.0,1805.9,6.28288993]
[1745996331745,11.85134198,1806.0,1805.9,6.28288993]
[1745996332104,12.63794198,1806.0,1805.9,6.28288993]
[1745996332840,14.45541627,1806.0,1805.9,4.584]
[1745996333042,5.53755314,1805.9,1805.7,1.69888993]
[1745996333220,5.40962472,1805.8,1805.7,1.69888993]
[1745996333410,6.00190197,1805.8,1805.7,1.69888993]
[1745996334541,6.31185893,1805.8,1805.7,1.69888993]
[1745996336962,6.31185893,1805.8,1805.6,4.58]
[1745996336963,12.66967074,1805.8,1805.6,4.58]
[1745996337134,5.53801849,1805.7,1805.6,4.58]
[1745996337541,6.12691069,1805.7,1805.6,4.58]
[1745996337740,12.31283541,1805.7,1805.6,4.58]
[1745996337939,5.53832521,1805.6,1805.5,1.69888993]
[1745996338142,6.30847388,1805.7,1805.5,8.46158396]
[1745996338344,5.71958168,1805.7,1805.6,0.8461584]
[1745996338657,0.5888922,1805.6,1805.5,9.01158396]
[1745996338815,5.40962472,1805.7,1805.5,9.01158396]
[1745996339021,0.5888922,1805.6,1805.5,9.01158396]
[1745996341658,0.5888922,1805.6,1805.5,3.47305728]
[1745996344359,0.5888922,1805.6,1805.5,2.66545728]
[1745996346870,0.5888922,1805.6,1805.5,9.10158621]
[1745996349934,0.5888922,1805.6,1805.5,3.56295426]
[1745996351779,0.5888922,1805.6,1805.5,8.12295426]
[1745996354537,0.5888922,1805.6,1805.5,7.22545728]
[1745996354730,6.80181692,1805.6,1805.4,4.56]
[1745996354948,12.3402111,1805.6,1805.4,6.25888993]
[1745996358238,6.80181692,1805.6,1805.4,6.25888993]
[1745996364176,5.99851692,1805.6,1805.4,6.25888993]
[1745996364674,5.99851692,1805.6,1805.5,6.90703195]
[1745996372209,5.99851692,1805.6,1805.5,9.90703195]
[1745996373797,5.40962472,1805.6,1805.5,9.90703195]
[1745996374158,5.99851692,1805.6,1805.5,9.90703195]
[1745996376689,5.99851692,1805.6,1805.5,9.96241114]
[1745996376873,5.40962472,1805.6,1805.5,12.23578631]
[1745996378202,5.99851692,1805.6,1805.5,12.23578631]
[1745996378400,5.40962472,1805.6,1805.5,12.23578631]
[1745996378578,5.99851692,1805.6,1805.5,12.23578631]
[1745996378781,5.99851692,1805.6,1805.5,11.41738631]
[1745996384615,5.99851692,1805.6,1805.5,15.97438631]
[1745996385013,5.99851692,1805.6,1805.5,10.64563195]
[1745996385513,6.79011692,1805.6,1805.4,1.69888993]
[1745996385815,6.79011692,1805.6,1805.5,4.557]
[1745996388777,11.73954993,1805.6,1805.5,4.557]
[1745996388982,14.05836591,1805.6,1805.5,4.557]
[1745996389428,14.36841734,1805.6,1805.5,4.557]
[1745996394537,8.83009213,1805.6,1805.5,4.557]
[1745996396006,14.36841734,1805.6,1805.5,4.557]
[1745996399949,14.36841734,1805.6,1805.4,1.69888993]
[1745996399950,6.29313195,1805.5,1805.4,1.69888993]
[1745996400246,13.6897516,1805.5,1805.4,1.69888993]
[1745996400405,13.99980303,1805.5,1805.4,1.69888993]
[1745996401033,6.360882,1805.4,1805.2,1.69888993]
[1745996401232,6.36079605,1805.4,1805.2,6.25588993]
[1745996401739,6.36079605,1805.4,1805.3,1.69888993]
[1745996401944,8.6001286,1805.4,1805.3,1.69888993]
[1745996402521,3.06103255,1805.4,1805.3,1.69888993]
[1745996402730,1.1314122,1805.4,1805.3,1.69888993]
[1745996403052,0.3097122,1805.4,1805.3,10.24322541]
[1745996403257,0.3097122,1805.4,1805.3,8.54433548]
[1745996403418,5.40962472,1805.5,1805.4,0.55]
[1745996404319,5.40962472,1805.5,1805.4,6.08893873]
[1745996404623,5.40962472,1805.5,1805.4,0.55]
[1745996405768,5.40962472,1805.5,1805.4,9.94335627]
[1745996406047,5.40962472,1805.5,1805.4,10.72405627]
[1745996408536,5.40962472,1805.5,1805.4,9.94335627]
[1745996409054,5.40962472,1805.5,1805.3,7.23790947]
[1745996409224,5.40962472,1805.5,1805.4,5.53893873]
[1745996411693,5.40962472,1805.5,1805.3,2.52448993]
[1745996411980,5.40962472,1805.5,1805.3,1.69888993]
[1745996412189,6.23982472,1805.5,1805.3,1.69888993]
[1745996414678,13.01539336,1805.5,1805.3,1.69888993]
[1745996416188,0.31002569,1805.4,1805.3,1.69888993]
[1745996416687,0.7799,1805.3,1805.1,2.10535633]
[1745996416848,0.7799,1805.3,1805.1,0.4064664]
[1745996417048,6.31940499,1805.3,1805.1,0.4064664]
[1745996417376,5.71965041,1805.2,1805.1,0.4064664]
[1745996417764,6.29165144,1805.2,1805.1,6.49632568]
[1745996418079,5.98162575,1805.2,1805.1,6.49632568]
[1745996421278,5.98162575,1805.2,1805.1,7.27812568]
[1745996421654,5.40962472,1805.2,1805.1,7.27812568]
[1745996421977,5.97792741,1805.2,1805.1,9.18523273]
[1745996423582,5.97792741,1805.2,1805.1,12.18523273]
[1745996424082,5.40962472,1805.2,1805.1,12.18523273]
[1745996424277,5.97792741,1805.2,1805.1,12.18523273]
[1745996424480,5.40962472,1805.2,1805.1,12.18523273]
[1745996424686,5.97792741,1805.2,1805.1,12.18523273]
[1745996432506,5.97096845,1805.2,1805.1,12.18523273]
[1745996436197,0.56134373,1805.2,1805.1,13.88412266]
[1745996436492,5.40962472,1805.4,1805.3,6.08924555]
[1745996436664,5.40962472,1805.4,1805.3,11.41199261]
[1745996441102,5.97197062,1805.4,1805.3,15.96699261]
[1745996443407,5.97197062,1805.4,1805.3,13.50600268]
[1745996452487,0.5623459,1805.4,1805.3,19.01829261]
[1745996452688,5.40962472,1805.7,1805.6,6.08832521]
[1745996452910,5.97328116,1805.7,1805.6,7.78721514]
[1745996454323,5.97328116,1805.7,1805.6,8.20843639]
[1745996458218,5.97328116,1805.7,1805.6,9.66391026]
[1745996461725,5.97328116,1805.7,1805.6,8.20843639]
[1745996465128,5.97328116,1805.7,1805.6,12.76343639]
[1745996470436,6.77948116,1805.7,1805.6,12.76343639]
[1745996471833,6.21582472,1805.7,1805.6,12.76343639]
[1745996472043,6.21582472,1805.7,1805.6,7.22511118]
[1745996472203,6.78210176,1805.7,1805.6,7.22511118]
[1745996473138,6.78210176,1805.7,1805.6,12.76343639]
[1745996473320,6.78210176,1805.7,1805.6,6.24588993]
[1745996474044,6.78210176,1805.7,1805.6,11.78421514]
[1745996477345,5.97590176,1805.7,1805.6,12.33421514]
[1745996477523,5.97590176,1805.7,1805.6,14.121479]
[1745996478010,5.97590176,1805.7,1805.6,14.53161446]
[1745996479250,5.97590176,1805.7,1805.6,17.53161446]
[1745996479561,5.40962472,1806.0,1805.9,9.08740517]
[1745996479845,5.40962472,1806.0,1805.9,16.93172145]
[1745996480050,5.92878908,1806.0,1805.9,16.87635423]
[1745996480203,5.40962472,1806.0,1805.9,18.57524416]
[1745996480409,5.93079253,1806.0,1805.9,16.87635423]
[1745996481906,5.93079253,1806.0,1805.9,18.57524416]
[1745996484715,5.93079253,1806.0,1805.9,16.87635423]
[1745996484916,5.40962472,1806.0,1805.9,16.87635423]
[1745996485556,5.40962472,1806.0,1805.9,18.57524416]
[1745996485726,5.40962472,1806.0,1805.9,16.87635423]
[1745996486051,5.40962472,1806.0,1805.9,18.57524416]
[1745996486452,5.40962472,1806.0,1805.9,16.87635423]
[1745996486654,5.93233325,1806.0,1805.9,16.87635423]
[1745996486860,5.40962472,1806.0,1805.9,17.63635423]
[1745996487065,5.40962472,1806.0,1805.9,19.33524416]
[1745996488655,5.40962472,1806.0,1805.9,17.63635423]
[1745996489360,5.40962472,1806.0,1805.9,16.87635423]
[1745996489739,5.93695598,1806.0,1805.9,16.87635423]
[1745996490755,5.40962472,1806.0,1805.9,16.87635423]
[1745996491156,5.93695598,1806.0,1805.9,16.87635423]
[1745996498271,5.93695598,1806.0,1805.9,12.32935423]
[1745996498473,5.93695598,1806.0,1805.9,12.3312951]
[1745996498652,5.40962472,1806.0,1805.9,12.3312951]
[1745996498851,5.93695598,1806.0,1805.9,12.3312951]
[1745996500877,6.73365598,1806.0,1805.9,7.7862951]
[1745996501079,6.73365598,1806.0,1805.9,1.69888993]
[1745996501378,7.96070475,1806.0,1805.9,6.24488993]
[1745996501885,6.73365598,1806.0,1805.9,6.24488993]
[1745996502485,6.73365598,1806.0,1805.9,1.69888993]
[1745996502686,6.73365598,1806.0,1805.9,6.24488993]
[1745996503657,6.73365598,1806.0,1805.9,8.49377986]
[1745996503852,6.73365598,1806.0,1805.9,14.03118503]
[1745996503853,5.93695598,1806.0,1805.9,14.03118503]
[1745996504188,5.40962472,1806.0,1805.9,19.79005772]
[1745996506794,5.40962472,1806.4,1806.3,6.08617892]
[1745996506954,5.40962472,1806.4,1806.3,10.63117892]
[1745996507154,5.93487606,1806.4,1806.3,10.63117892]
[1745996508300,5.93487606,1806.4,1806.3,11.68804872]
[1745996508524,5.93487606,1806.4,1806.3,14.68804872]
[1745996511076,5.93487606,1806.4,1806.3,15.09997361]
[1745996511976,5.93487606,1806.4,1806.3,15.91537361]
[1745996512379,0.52525134,1806.4,1806.3,15.91537361]
[1745996512886,0.7939,1806.8,1806.7,6.08495322]
[1745996513067,6.20352472,1806.8,1806.7,6.79388993]
[1745996513492,6.20352472,1806.8,1806.7,12.32884315]
[1745996516297,6.7300854,1806.8,1806.7,12.32884315]
[1745996520417,6.7300854,1806.8,1806.7,14.1152314]
[1745996523004,5.9361854,1806.8,1806.7,14.1152314]
[1745996525607,5.9361854,1806.8,1806.7,12.41634147]
[1745996525922,6.7359854,1806.8,1806.7,10.62995322]
[1745996540950,6.7359854,1806.8,1806.7,4.545]
[1745996541507,7.04636557,1806.8,1806.7,4.545]